[Event "Early-Titled-Tuesday-Blitz-April-23-2024"]
[Site "Chess.com"]
[Date "2024.04.23"]
[Round "11"]
[White "HajiyevKanan"]
[Black "Gryffindorac8"]
[Result "1/2-1/2"]
[WhiteElo "2603"]
[BlackElo "2461"]
[TimeControl "180+1"]
[EndTime "10:12:27 PDT"]
[Termination "Game drawn - insufficient material"]

1. d4 {[%clk 0:02:48.8]} 1... Nf6 {[%clk 0:02:59.5]} 2. Nf3 {[%clk 0:02:49.7]}
2... e6 {[%clk 0:02:58.5]} 3. c4 {[%clk 0:02:46.8]} 3... c5 {[%clk 0:02:58.3]}
4. e3 {[%clk 0:02:46.3]} 4... d5 {[%clk 0:02:55.1]} 5. Nc3 {[%clk 0:02:44.5]}
5... Nc6 {[%clk 0:02:54.8]} 6. Be2 {[%clk 0:02:42.6]} 6... Be7 {[%clk
0:02:52.8]} 7. dxc5 {[%clk 0:02:41.5]} 7... Bxc5 {[%clk 0:02:53.7]} 8. O-O
{[%clk 0:02:42]} 8... O-O {[%clk 0:02:53.4]} 9. b3 {[%clk 0:02:39.7]} 9... Bb6
{[%clk 0:02:49.6]} 10. cxd5 {[%clk 0:02:38.3]} 10... exd5 {[%clk 0:02:48.6]} 11.
Bb2 {[%clk 0:02:37]} 11... Re8 {[%clk 0:02:47.2]} 12. Na4 {[%clk 0:02:34]} 12...
Bc7 {[%clk 0:02:44]} 13. Rc1 {[%clk 0:02:33.4]} 13... Ne4 {[%clk 0:02:30.6]} 14.
Nc5 {[%clk 0:02:24.8]} 14... Nxc5 {[%clk 0:02:20.6]} 15. Rxc5 {[%clk 0:02:24.6]}
15... Bg4 {[%clk 0:02:15.6]} 16. Nd4 {[%clk 0:02:18.5]} 16... Qd6 {[%clk
0:02:09.3]} 17. g3 {[%clk 0:01:57.9]} 17... Bxe2 {[%clk 0:02:07.2]} 18. Rxc6
{[%clk 0:01:53.7]} 18... Bxd1 {[%clk 0:01:39.2]} 19. Rxd6 {[%clk 0:01:53.8]}
19... Bxd6 {[%clk 0:01:37.2]} 20. Rxd1 {[%clk 0:01:54.1]} 20... Be5 {[%clk
0:01:35.7]} 21. Ba3 {[%clk 0:01:40.9]} 21... Bxd4 {[%clk 0:01:24.8]} 22. Rxd4
{[%clk 0:01:40.7]} 22... Rad8 {[%clk 0:01:22.8]} 23. Kf1 {[%clk 0:01:37.6]}
23... Re4 {[%clk 0:01:22]} 24. Rd2 {[%clk 0:01:29.1]} 24... f5 {[%clk
0:01:17.9]} 25. h4 {[%clk 0:01:25.9]} 25... d4 {[%clk 0:01:14.9]} 26. Bc5 {[%clk
0:01:25.5]} 26... d3 {[%clk 0:00:41.3]} 27. Bxa7 {[%clk 0:01:25.5]} 27... Re6
{[%clk 0:00:32]} 28. Bd4 {[%clk 0:01:24.5]} 28... Rc6 {[%clk 0:00:23.3]} 29.
Rxd3 {[%clk 0:01:20.6]} 29... Rc2 {[%clk 0:00:22]} 30. a4 {[%clk 0:01:18.9]}
30... Rdc8 {[%clk 0:00:20.5]} 31. b4 {[%clk 0:01:00.7]} 31... Ra2 {[%clk
0:00:20]} 32. Bc5 {[%clk 0:00:42.4]} 32... Rxa4 {[%clk 0:00:18.8]} 33. Rd7
{[%clk 0:00:42.9]} 33... b6 {[%clk 0:00:15.1]} 34. Bd4 {[%clk 0:00:42.2]} 34...
g6 {[%clk 0:00:11.4]} 35. Rg7+ {[%clk 0:00:41.9]} 35... Kf8 {[%clk 0:00:11.9]}
36. Rxh7 {[%clk 0:00:32.4]} 36... Rc2 {[%clk 0:00:11.7]} 37. Bxb6 {[%clk
0:00:18.2]} 37... Rxb4 {[%clk 0:00:11]} 38. Rc7 {[%clk 0:00:12.3]} 38... Rxc7
{[%clk 0:00:07.2]} 39. Bxc7 {[%clk 0:00:13.2]} 39... Kf7 {[%clk 0:00:07.3]} 40.
Kg2 {[%clk 0:00:12.3]} 40... Rb1 {[%clk 0:00:07.2]} 41. Kf3 {[%clk 0:00:12.5]}
41... Rb3 {[%clk 0:00:07.4]} 42. Be5 {[%clk 0:00:12.6]} 42... Rb5 {[%clk
0:00:07.5]} 43. Bd4 {[%clk 0:00:12.9]} 43... Ke6 {[%clk 0:00:07.5]} 44. Kf4
{[%clk 0:00:13.2]} 44... Rb3 {[%clk 0:00:07.5]} 45. Kg5 {[%clk 0:00:13.1]} 45...
Kf7 {[%clk 0:00:07.3]} 46. f3 {[%clk 0:00:13.2]} 46... Rb5 {[%clk 0:00:05.9]}
47. g4 {[%clk 0:00:12.2]} 47... fxg4+ {[%clk 0:00:05.4]} 48. Kxg4 {[%clk
0:00:13.1]} 48... Rd5 {[%clk 0:00:05]} 49. Kf4 {[%clk 0:00:13.1]} 49... Rh5
{[%clk 0:00:05.1]} 50. Kg4 {[%clk 0:00:13.6]} 50... Rf5 {[%clk 0:00:05.3]} 51.
e4 {[%clk 0:00:12.9]} 51... Rb5 {[%clk 0:00:05.3]} 52. Be3 {[%clk 0:00:13.3]}
52... Rb3 {[%clk 0:00:05]} 53. Bg5 {[%clk 0:00:14.2]} 53... Ra3 {[%clk 0:00:04]}
54. f4 {[%clk 0:00:13.7]} 54... Rb3 {[%clk 0:00:03.3]} 55. h5 {[%clk 0:00:13.4]}
55... Rb4 {[%clk 0:00:02.1]} 56. e5 {[%clk 0:00:08]} 56... gxh5+ {[%clk
0:00:01.8]} 57. Kxh5 {[%clk 0:00:08.9]} 57... Ke6 {[%clk 0:00:02.5]} 58. Kg6
{[%clk 0:00:08.7]} 58... Rc4 {[%clk 0:00:02.6]} 59. Bh6 {[%clk 0:00:08.1]} 59...
Rd4 {[%clk 0:00:02.4]} 60. f5+ {[%clk 0:00:06.4]} 60... Kd5 {[%clk 0:00:02.6]}
61. e6 {[%clk 0:00:06.3]} 61... Re4 {[%clk 0:00:02.8]} 62. Bg5 {[%clk
0:00:05.9]} 62... Rxe6+ {[%clk 0:00:03]} 63. Bf6 {[%clk 0:00:05.1]} 63... Re4
{[%clk 0:00:02.6]} 64. Bg7 {[%clk 0:00:05.5]} 64... Rf4 {[%clk 0:00:03.1]} 65.
f6 {[%clk 0:00:06.1]} 65... Rxf6+ {[%clk 0:00:03.5]} 66. Bxf6 {[%clk 0:00:06.7]}
1/2-1/2

[Event "Early-Titled-Tuesday-Blitz-April-23-2024"]
[Site "Chess.com"]
[Date "2024.04.23"]
[Round "11"]
[White "Bilan_Danila"]
[Black "Raskolnikov6"]
[Result "1-0"]
[WhiteElo "2550"]
[BlackElo "2399"]
[TimeControl "180+1"]
[EndTime "10:12:29 PDT"]
[Termination "Bilan_Danila won by resignation"]

1. d4 {[%clk 0:02:46.3]} 1... d5 {[%clk 0:02:59.1]} 2. Nf3 {[%clk 0:02:46.7]}
2... Nf6 {[%clk 0:02:58.6]} 3. c4 {[%clk 0:02:47]} 3... e6 {[%clk 0:02:56.8]} 4.
Nc3 {[%clk 0:02:47.1]} 4... c5 {[%clk 0:02:57.5]} 5. cxd5 {[%clk 0:02:40.2]}
5... Nxd5 {[%clk 0:02:58.4]} 6. e4 {[%clk 0:02:40.6]} 6... Nxc3 {[%clk
0:02:58.2]} 7. bxc3 {[%clk 0:02:41.5]} 7... cxd4 {[%clk 0:02:58.8]} 8. cxd4
{[%clk 0:02:42.4]} 8... Bb4+ {[%clk 0:02:57.7]} 9. Bd2 {[%clk 0:02:43.1]} 9...
Bxd2+ {[%clk 0:02:57.7]} 10. Qxd2 {[%clk 0:02:44]} 10... O-O {[%clk 0:02:57.8]}
11. Bc4 {[%clk 0:02:44.8]} 11... b6 {[%clk 0:02:57]} 12. d5 {[%clk 0:02:43.5]}
12... Ba6 {[%clk 0:02:45.9]} 13. Bxa6 {[%clk 0:02:34.6]} 13... Nxa6 {[%clk
0:02:43.8]} 14. d6 {[%clk 0:02:23.5]} 14... Nc5 {[%clk 0:02:30.4]} 15. e5 {[%clk
0:02:22]} 15... f6 {[%clk 0:02:29.2]} 16. O-O {[%clk 0:02:17.4]} 16... Qd7
{[%clk 0:02:25.8]} 17. Rad1 {[%clk 0:02:14.3]} 17... Rac8 {[%clk 0:02:24.6]} 18.
Rfe1 {[%clk 0:02:13.5]} 18... Rc6 {[%clk 0:02:13.8]} 19. Qe3 {[%clk 0:01:38.8]}
19... Qf7 {[%clk 0:02:04.9]} 20. exf6 {[%clk 0:01:21.3]} 20... gxf6 {[%clk
0:01:48]} 21. Rd4 {[%clk 0:01:05.5]} 21... Rd8 {[%clk 0:01:45.4]} 22. Red1
{[%clk 0:01:00.5]} 22... e5 {[%clk 0:01:43.8]} 23. Rd5 {[%clk 0:00:52.3]} 23...
Nd7 {[%clk 0:01:31.6]} 24. g3 {[%clk 0:00:44.2]} 24... Rdc8 {[%clk 0:01:25.2]}
25. Nh4 {[%clk 0:00:37.6]} 25... Qh5 {[%clk 0:01:21]} 26. Qe4 {[%clk 0:00:32.7]}
26... Rc1 {[%clk 0:01:09.1]} 27. Rxc1 {[%clk 0:00:23.9]} 27... Rxc1+ {[%clk
0:01:07.2]} 28. Kg2 {[%clk 0:00:24.5]} 28... Kf7 {[%clk 0:00:51.8]} 29. Rd3
{[%clk 0:00:23.9]} 29... Rc5 {[%clk 0:00:45.9]} 30. Qb7 {[%clk 0:00:22.5]} 30...
Ke6 {[%clk 0:00:41.8]} 31. Qa8 {[%clk 0:00:18.3]} 31... Qf7 {[%clk 0:00:37.9]}
32. g4 {[%clk 0:00:12.1]} 32... h5 {[%clk 0:00:29]} 33. h3 {[%clk 0:00:12.2]}
33... hxg4 {[%clk 0:00:26.8]} 34. hxg4 {[%clk 0:00:13.1]} 34... e4 {[%clk
0:00:26.6]} 35. Rd2 {[%clk 0:00:11.1]} 35... Qg7 {[%clk 0:00:17.4]} 36. Qxe4+
{[%clk 0:00:10.7]} 36... Ne5 {[%clk 0:00:10.7]} 37. d7 {[%clk 0:00:08.5]} 37...
Rc4 {[%clk 0:00:07.4]} 38. Qxc4+ {[%clk 0:00:07.1]} 38... Nxc4 {[%clk
0:00:06.1]} 39. d8=Q {[%clk 0:00:08]} 39... Qxg4+ {[%clk 0:00:06.1]} 40. Kf1
{[%clk 0:00:08.2]} 40... Nxd2+ {[%clk 0:00:04.3]} 41. Qxd2 {[%clk 0:00:03.7]}
41... Qxh4 {[%clk 0:00:05.2]} 42. Qe2+ {[%clk 0:00:01.5]} 42... Kf5 {[%clk
0:00:05.6]} 43. Qd3+ {[%clk 0:00:01.7]} 43... Qe4 {[%clk 0:00:06]} 44. Qd7+
{[%clk 0:00:02.3]} 44... Qe6 {[%clk 0:00:06.1]} 45. Qh7+ {[%clk 0:00:02.2]}
45... Ke5 {[%clk 0:00:06.4]} 46. Qxa7 {[%clk 0:00:02.7]} 46... Qc4+ {[%clk
0:00:06]} 47. Kg1 {[%clk 0:00:01.4]} 47... Qc5 {[%clk 0:00:06.9]} 48. Qa8 {[%clk
0:00:01.4]} 48... Kf5 {[%clk 0:00:07.8]} 49. Qc8+ {[%clk 0:00:01.4]} 49... Kg6
{[%clk 0:00:08.1]} 50. Qxc5 {[%clk 0:00:02.3]} 50... bxc5 {[%clk 0:00:07.8]} 51.
Kf1 {[%clk 0:00:03.2]} 51... Kf5 {[%clk 0:00:07.6]} 52. Ke2 {[%clk 0:00:04.1]}
52... Ke4 {[%clk 0:00:08.2]} 53. Kd2 {[%clk 0:00:04.6]} 53... Kd4 {[%clk
0:00:08.8]} 54. a4 {[%clk 0:00:05.1]} 54... Kc4 {[%clk 0:00:08.4]} 55. Kc2
{[%clk 0:00:05.7]} 55... Kb4 {[%clk 0:00:08.7]} 56. Kd3 {[%clk 0:00:04.1]} 56...
Kxa4 {[%clk 0:00:08.7]} 57. Kc4 {[%clk 0:00:04.5]} 57... Ka3 {[%clk 0:00:04.6]}
58. Kxc5 {[%clk 0:00:04.9]} 58... Kb3 {[%clk 0:00:05.2]} 59. Kd6 {[%clk
0:00:05]} 59... Kc3 {[%clk 0:00:05.8]} 60. f4 {[%clk 0:00:05.4]} 60... Kd4
{[%clk 0:00:05.5]} 61. f5 {[%clk 0:00:05.9]} 61... Kc4 {[%clk 0:00:01]} 62. Ke6
{[%clk 0:00:06.8]} 62... Kc5 {[%clk 0:00:01.8]} 63. Kxf6 {[%clk 0:00:07.7]}
63... Kd6 {[%clk 0:00:02.3]} 64. Kg7 {[%clk 0:00:08.3]} 64... Kd7 {[%clk
0:00:03]} 65. f6 {[%clk 0:00:09.2]} 65... Ke6 {[%clk 0:00:03.5]} 66. f7 {[%clk
0:00:10.1]} 66... Ke5 {[%clk 0:00:04.2]} 67. f8=Q {[%clk 0:00:11]} 67... Ke4
{[%clk 0:00:05.1]} 68. Qf6 {[%clk 0:00:11.5]} 1-0

[Event "Early-Titled-Tuesday-Blitz-April-23-2024"]
[Site "Chess.com"]
[Date "2024.04.23"]
[Round "11"]
[White "DominguezOnYoutube"]
[Black "blitzking1729"]
[Result "1-0"]
[WhiteElo "2964"]
[BlackElo "2790"]
[TimeControl "180+1"]
[EndTime "10:12:34 PDT"]
[Termination "DominguezOnYoutube won by resignation"]

1. e4 {[%clk 0:02:56.6]} 1... e5 {[%clk 0:02:59.1]} 2. Nf3 {[%clk 0:02:56.3]}
2... Nc6 {[%clk 0:02:58.7]} 3. Bb5 {[%clk 0:02:56.8]} 3... a6 {[%clk 0:02:57.9]}
4. Ba4 {[%clk 0:02:56.7]} 4... Nf6 {[%clk 0:02:56.8]} 5. O-O {[%clk 0:02:56.7]}
5... d6 {[%clk 0:02:51.9]} 6. Re1 {[%clk 0:02:53.5]} 6... Bd7 {[%clk 0:02:51.9]}
7. c3 {[%clk 0:02:53]} 7... g6 {[%clk 0:02:49.8]} 8. d4 {[%clk 0:02:53.1]} 8...
Bg7 {[%clk 0:02:49.8]} 9. h3 {[%clk 0:02:53.3]} 9... O-O {[%clk 0:02:47.9]} 10.
Bc2 {[%clk 0:02:53.3]} 10... exd4 {[%clk 0:02:46.8]} 11. cxd4 {[%clk 0:02:53]}
11... Nh5 {[%clk 0:02:40.7]} 12. Nc3 {[%clk 0:02:48.1]} 12... Nb4 {[%clk
0:02:32.6]} 13. Bb3 {[%clk 0:02:45.9]} 13... Kh8 {[%clk 0:02:27.4]} 14. Ng5
{[%clk 0:02:27]} 14... Qe8 {[%clk 0:02:09.5]} 15. e5 {[%clk 0:02:26.6]} 15...
dxe5 {[%clk 0:02:06.8]} 16. dxe5 {[%clk 0:02:21]} 16... Rd8 {[%clk 0:01:50.7]}
17. Nxf7+ {[%clk 0:01:44.2]} 17... Rxf7 {[%clk 0:01:50.7]} 18. Bxf7 {[%clk
0:01:44.7]} 18... Qxf7 {[%clk 0:01:50.9]} 19. e6 {[%clk 0:01:44.4]} 19... Qf5
{[%clk 0:01:39]} 20. exd7 {[%clk 0:01:40.3]} 20... Nf6 {[%clk 0:01:37.2]} 21. g4
{[%clk 0:01:23.4]} 21... Qxd7 {[%clk 0:00:53.6]} 22. Qxd7 {[%clk 0:01:22.1]}
22... Rxd7 {[%clk 0:00:53.7]} 23. Rd1 {[%clk 0:01:17.9]} 23... Rxd1+ {[%clk
0:00:44.1]} 24. Nxd1 {[%clk 0:01:17.4]} 24... Ne4 {[%clk 0:00:44.7]} 25. a3
{[%clk 0:01:01.8]} 25... Nc2 {[%clk 0:00:38.5]} 26. Ra2 {[%clk 0:00:57.1]} 26...
Nd4 {[%clk 0:00:31.4]} 27. b4 {[%clk 0:00:54.6]} 27... b6 {[%clk 0:00:24]} 28.
Kg2 {[%clk 0:00:52.5]} 28... c5 {[%clk 0:00:24.4]} 29. bxc5 {[%clk 0:00:52.5]}
29... bxc5 {[%clk 0:00:24.1]} 30. Rb2 {[%clk 0:00:46.5]} 30... Nb5 {[%clk
0:00:22.8]} 31. Re2 {[%clk 0:00:44.5]} 31... Ned6 {[%clk 0:00:21.4]} 32. a4
{[%clk 0:00:36.4]} 32... Nd4 {[%clk 0:00:21.2]} 33. Re7 {[%clk 0:00:35.3]} 33...
Kg8 {[%clk 0:00:20.2]} 34. Rd7 {[%clk 0:00:31]} 34... Nc4 {[%clk 0:00:18.9]} 35.
Nc3 {[%clk 0:00:25.8]} 35... Nb6 {[%clk 0:00:10.5]} 36. Rd6 {[%clk 0:00:20.4]}
36... Nc4 {[%clk 0:00:10]} 37. Rxa6 {[%clk 0:00:20.1]} 37... Nb3 {[%clk
0:00:10.5]} 38. Ne2 {[%clk 0:00:19.8]} 38... Nxc1 {[%clk 0:00:09]} 39. Nxc1
{[%clk 0:00:19.6]} 39... Bb2 {[%clk 0:00:09.6]} 40. Nd3 {[%clk 0:00:16.6]} 40...
Bd4 {[%clk 0:00:09.7]} 41. Ra7 {[%clk 0:00:12.9]} 41... Nd2 {[%clk 0:00:04.9]}
42. Rd7 {[%clk 0:00:11.5]} 42... Nb3 {[%clk 0:00:05.2]} 43. Rc7 {[%clk
0:00:08.6]} 43... h5 {[%clk 0:00:03.8]} 44. gxh5 {[%clk 0:00:08.3]} 44... gxh5
{[%clk 0:00:03.8]} 45. f4 {[%clk 0:00:08.7]} 45... Kf8 {[%clk 0:00:03.8]} 46.
Kf3 {[%clk 0:00:08.8]} 46... Ke8 {[%clk 0:00:04.3]} 47. f5 {[%clk 0:00:09]}
47... Kd8 {[%clk 0:00:04.8]} 48. Rc6 {[%clk 0:00:06.9]} 48... Kd7 {[%clk
0:00:04.9]} 49. Rg6 {[%clk 0:00:05.6]} 49... c4 {[%clk 0:00:05.1]} 50. Nf4
{[%clk 0:00:05.9]} 50... c3 {[%clk 0:00:05.2]} 51. Ne2 {[%clk 0:00:05.9]} 51...
c2 {[%clk 0:00:05.3]} 52. f6 {[%clk 0:00:05.7]} 52... Ke6 {[%clk 0:00:04.3]} 53.
f7+ {[%clk 0:00:05.8]} 53... Kxf7 {[%clk 0:00:04.4]} 54. Rc6 {[%clk 0:00:06.3]}
54... Bc5 {[%clk 0:00:03.1]} 55. a5 {[%clk 0:00:06.5]} 55... Ke7 {[%clk
0:00:02.4]} 56. Ke4 {[%clk 0:00:05.8]} 56... Kd7 {[%clk 0:00:02.9]} 57. Kd5
{[%clk 0:00:04.9]} 57... h4 {[%clk 0:00:01.1]} 58. a6 {[%clk 0:00:04.7]} 58...
c1=Q {[%clk 0:00:01.3]} 59. Nxc1 {[%clk 0:00:04.3]} 59... Nxc1 {[%clk
0:00:02.2]} 60. Rxc5 {[%clk 0:00:04.7]} 60... Nb3 {[%clk 0:00:02.4]} 61. a7
{[%clk 0:00:05.1]} 1-0

[Event "Early-Titled-Tuesday-Blitz-April-23-2024"]
[Site "Chess.com"]
[Date "2024.04.23"]
[Round "11"]
[White "ilqar_74"]
[Black "Fh2411"]
[Result "1-0"]
[WhiteElo "2741"]
[BlackElo "2568"]
[TimeControl "180+1"]
[EndTime "10:12:45 PDT"]
[Termination "ilqar_74 won on time"]

1. e4 {[%clk 0:03:00.9]} 1... c6 {[%clk 0:02:59.7]} 2. Nf3 {[%clk 0:02:59.1]}
2... d5 {[%clk 0:03:00]} 3. Nc3 {[%clk 0:03:00]} 3... Bg4 {[%clk 0:02:59.6]} 4.
h3 {[%clk 0:03:00]} 4... Bxf3 {[%clk 0:02:59.6]} 5. Qxf3 {[%clk 0:03:00.9]} 5...
e6 {[%clk 0:03:00.3]} 6. d4 {[%clk 0:03:00.9]} 6... dxe4 {[%clk 0:02:59.2]} 7.
Qxe4 {[%clk 0:03:00.7]} 7... Nf6 {[%clk 0:02:58.1]} 8. Qd3 {[%clk 0:03:00.8]}
8... Nbd7 {[%clk 0:02:57.8]} 9. Be2 {[%clk 0:03:00.6]} 9... Be7 {[%clk
0:02:57.7]} 10. O-O {[%clk 0:03:00.4]} 10... O-O {[%clk 0:02:58.4]} 11. Ne4
{[%clk 0:03:00.6]} 11... Nxe4 {[%clk 0:02:54.2]} 12. Qxe4 {[%clk 0:03:01.5]}
12... Nf6 {[%clk 0:02:54.5]} 13. Qd3 {[%clk 0:03:01.3]} 13... a5 {[%clk
0:02:55.2]} 14. c4 {[%clk 0:03:01]} 14... a4 {[%clk 0:02:53.9]} 15. Rd1 {[%clk
0:03:00.7]} 15... Qb6 {[%clk 0:02:52.4]} 16. Rb1 {[%clk 0:03:00]} 16... Rfd8
{[%clk 0:02:51.9]} 17. Be3 {[%clk 0:03:00]} 17... Qa5 {[%clk 0:02:49.1]} 18. Qc2
{[%clk 0:02:58.2]} 18... Rd7 {[%clk 0:02:38.6]} 19. b3 {[%clk 0:02:55.7]} 19...
axb3 {[%clk 0:02:35.1]} 20. axb3 {[%clk 0:02:55.4]} 20... Qd8 {[%clk 0:02:35]}
21. Bf3 {[%clk 0:02:50.9]} 21... h6 {[%clk 0:02:34.3]} 22. g3 {[%clk 0:02:50.4]}
22... Bb4 {[%clk 0:02:26.3]} 23. Kg2 {[%clk 0:02:49]} 23... Qe7 {[%clk
0:02:22.8]} 24. Ra1 {[%clk 0:02:48.1]} 24... Rdd8 {[%clk 0:02:23]} 25. Ra4
{[%clk 0:02:39.2]} 25... Rxa4 {[%clk 0:02:01.8]} 26. bxa4 {[%clk 0:02:40.1]}
26... Qc7 {[%clk 0:01:50.9]} 27. Rb1 {[%clk 0:02:38.5]} 27... Ba5 {[%clk
0:01:51.1]} 28. Qb3 {[%clk 0:02:34.7]} 28... b6 {[%clk 0:01:51.2]} 29. Rc1
{[%clk 0:02:23.9]} 29... c5 {[%clk 0:01:32.7]} 30. d5 {[%clk 0:02:10.6]} 30...
e5 {[%clk 0:01:23.5]} 31. Qc2 {[%clk 0:02:07.6]} 31... Qe7 {[%clk 0:01:17.3]}
32. Rd1 {[%clk 0:01:58.3]} 32... e4 {[%clk 0:01:14.9]} 33. Be2 {[%clk
0:01:58.4]} 33... Ne8 {[%clk 0:01:13.6]} 34. Rb1 {[%clk 0:01:54.2]} 34... Nd6
{[%clk 0:01:13.5]} 35. Bd2 {[%clk 0:01:53.9]} 35... Bxd2 {[%clk 0:00:52.3]} 36.
Qxd2 {[%clk 0:01:54.8]} 36... Qa7 {[%clk 0:00:52.6]} 37. Qf4 {[%clk 0:01:41.7]}
37... Qc7 {[%clk 0:00:39.8]} 38. Ra1 {[%clk 0:01:28.6]} 38... Ra8 {[%clk
0:00:39.4]} 39. h4 {[%clk 0:01:27.1]} 39... Qe7 {[%clk 0:00:39.2]} 40. Rb1
{[%clk 0:01:24.6]} 40... Ra6 {[%clk 0:00:36.5]} 41. Rb3 {[%clk 0:01:13.3]} 41...
Qf6 {[%clk 0:00:30.5]} 42. Qg4 {[%clk 0:01:06.3]} 42... Qf5 {[%clk 0:00:26.8]}
43. Qxf5 {[%clk 0:00:41.2]} 43... Nxf5 {[%clk 0:00:27.7]} 44. Ra3 {[%clk
0:00:41.5]} 44... Nd6 {[%clk 0:00:23.2]} 45. f3 {[%clk 0:00:38.3]} 45... exf3+
{[%clk 0:00:17.7]} 46. Kxf3 {[%clk 0:00:39.2]} 46... h5 {[%clk 0:00:13]} 47. Kf4
{[%clk 0:00:38]} 47... f6 {[%clk 0:00:08.9]} 48. Ra1 {[%clk 0:00:34.9]} 48... g6
{[%clk 0:00:09.1]} 49. Bd3 {[%clk 0:00:32.2]} 49... Kf7 {[%clk 0:00:09.2]} 50.
Kf3 {[%clk 0:00:26.5]} 50... Ra7 {[%clk 0:00:09.4]} 51. Rb1 {[%clk 0:00:25.9]}
51... Ra6 {[%clk 0:00:09.6]} 52. Rb3 {[%clk 0:00:21.8]} 52... f5 {[%clk
0:00:04.4]} 53. Ra3 {[%clk 0:00:21.2]} 53... Kf6 {[%clk 0:00:04.5]} 54. Ra1
{[%clk 0:00:21]} 54... Nf7 {[%clk 0:00:04.9]} 55. Bf1 {[%clk 0:00:19.8]} 55...
Ne5+ {[%clk 0:00:05.3]} 56. Ke3 {[%clk 0:00:20.3]} 56... Ra8 {[%clk 0:00:04.6]}
57. Ra2 {[%clk 0:00:17.8]} 57... Ra6 {[%clk 0:00:05]} 58. Be2 {[%clk 0:00:17.6]}
58... Nf7 {[%clk 0:00:04.6]} 59. Kf4 {[%clk 0:00:15.3]} 59... Ne5 {[%clk
0:00:04.8]} 60. Bf1 {[%clk 0:00:14.3]} 60... Nd7 {[%clk 0:00:01.6]} 61. Re2
{[%clk 0:00:14.2]} 61... Rxa4 {[%clk 0:00:01.5]} 62. Re6+ {[%clk 0:00:14.8]}
62... Kf7 {[%clk 0:00:02.1]} 63. Rd6 {[%clk 0:00:11.4]} 63... Nf6 {[%clk
0:00:01.2]} 64. Bg2 {[%clk 0:00:08.3]} 64... b5 {[%clk 0:00:01]} 65. Kg5 {[%clk
0:00:07.5]} 1-0

[Event "Early-Titled-Tuesday-Blitz-April-23-2024"]
[Site "Chess.com"]
[Date "2024.04.23"]
[Round "11"]
[White "GM_dmitrij"]
[Black "Polish_fighter3000"]
[Result "0-1"]
[WhiteElo "3004"]
[BlackElo "3118"]
[TimeControl "180+1"]
[EndTime "10:12:48 PDT"]
[Termination "Polish_fighter3000 won by resignation"]

1. e4 {[%clk 0:03:00.9]} 1... e6 {[%clk 0:03:00.9]} 2. d4 {[%clk 0:02:59.3]}
2... d5 {[%clk 0:03:01.1]} 3. Nc3 {[%clk 0:02:59.5]} 3... dxe4 {[%clk 0:03:00]}
4. Nxe4 {[%clk 0:03:00.4]} 4... Bd7 {[%clk 0:03:00.5]} 5. Nf3 {[%clk 0:02:59.7]}
5... Bc6 {[%clk 0:03:00.9]} 6. Bd3 {[%clk 0:03:00.4]} 6... Nd7 {[%clk
0:03:01.5]} 7. O-O {[%clk 0:02:59.2]} 7... Ngf6 {[%clk 0:03:00.3]} 8. Nc3 {[%clk
0:02:59.8]} 8... g6 {[%clk 0:02:48]} 9. Re1 {[%clk 0:02:44.2]} 9... Bg7 {[%clk
0:02:47.8]} 10. Bg5 {[%clk 0:02:36.5]} 10... h6 {[%clk 0:02:16.2]} 11. Bh4
{[%clk 0:02:35.7]} 11... O-O {[%clk 0:02:05.2]} 12. Ne5 {[%clk 0:02:30.4]} 12...
g5 {[%clk 0:02:05.5]} 13. Nxc6 {[%clk 0:02:26.1]} 13... bxc6 {[%clk 0:02:06.4]}
14. Bg3 {[%clk 0:02:26.3]} 14... c5 {[%clk 0:02:05.8]} 15. Bb5 {[%clk
0:01:47.3]} 15... cxd4 {[%clk 0:01:45.4]} 16. Qxd4 {[%clk 0:01:44.2]} 16... Nd5
{[%clk 0:01:45.5]} 17. Qc4 {[%clk 0:01:32.5]} 17... N7b6 {[%clk 0:01:42.8]} 18.
Qc6 {[%clk 0:01:29.4]} 18... Nxc3 {[%clk 0:01:05.2]} 19. bxc3 {[%clk 0:01:30.3]}
19... Qd5 {[%clk 0:01:05.4]} 20. Red1 {[%clk 0:01:23.8]} 20... Qxc6 {[%clk
0:01:00.4]} 21. Bxc6 {[%clk 0:01:24.7]} 21... Rad8 {[%clk 0:00:52.9]} 22. Rab1
{[%clk 0:00:52.1]} 22... Bxc3 {[%clk 0:00:50]} 23. Bxc7 {[%clk 0:00:46.7]} 23...
Rc8 {[%clk 0:00:35.6]} 24. Bxb6 {[%clk 0:00:45.6]} 24... axb6 {[%clk 0:00:36.5]}
25. Rxb6 {[%clk 0:00:45.4]} 25... Rfd8 {[%clk 0:00:36.6]} 26. Rd3 {[%clk
0:00:15]} 26... Rxd3 {[%clk 0:00:27.1]} 27. cxd3 {[%clk 0:00:15.9]} 27... Bd4
{[%clk 0:00:27.5]} 28. Ra6 {[%clk 0:00:16.5]} 28... Kg7 {[%clk 0:00:27.8]} 29.
g3 {[%clk 0:00:10.9]} 29... Rb8 {[%clk 0:00:27.3]} 30. Ra4 {[%clk 0:00:11.2]}
30... e5 {[%clk 0:00:22.7]} 31. Kf1 {[%clk 0:00:09.7]} 31... Rb1+ {[%clk
0:00:14.8]} 32. Kg2 {[%clk 0:00:08]} 32... Rb2 {[%clk 0:00:15.7]} 33. g4 {[%clk
0:00:07.8]} 33... Rxf2+ {[%clk 0:00:15.1]} 34. Kg3 {[%clk 0:00:08.4]} 34... Rf4
{[%clk 0:00:10.5]} 35. Be4 {[%clk 0:00:06.6]} 35... h5 {[%clk 0:00:10.8]} 36. h3
{[%clk 0:00:06.7]} 36... h4+ {[%clk 0:00:06.4]} 37. Kg2 {[%clk 0:00:07.2]} 37...
Rf2+ {[%clk 0:00:06.6]} 38. Kh1 {[%clk 0:00:07.8]} 38... Kf6 {[%clk 0:00:04.5]}
39. Ra6+ {[%clk 0:00:07.4]} 39... Ke7 {[%clk 0:00:04.8]} 40. a4 {[%clk
0:00:08.3]} 40... Ra2 {[%clk 0:00:04]} 41. a5 {[%clk 0:00:07.4]} 41... Rb2
{[%clk 0:00:03.8]} 42. Ra8 {[%clk 0:00:07.4]} 42... Rb1+ {[%clk 0:00:03.7]} 43.
Kg2 {[%clk 0:00:08.3]} 43... Rg1+ {[%clk 0:00:03.5]} 44. Kh2 {[%clk 0:00:08.5]}
44... Ra1 {[%clk 0:00:03.7]} 45. a6 {[%clk 0:00:08.5]} 45... Ra2+ {[%clk
0:00:03.9]} 46. Kh1 {[%clk 0:00:08.9]} 46... Be3 {[%clk 0:00:03.7]} 47. Rb8
{[%clk 0:00:07.8]} 47... Rxa6 {[%clk 0:00:03.1]} 48. Rb7+ {[%clk 0:00:07.5]}
48... Ke6 {[%clk 0:00:03.3]} 49. Rc7 {[%clk 0:00:07]} 49... Ra1+ {[%clk
0:00:02.6]} 50. Kg2 {[%clk 0:00:07.1]} 50... Bd4 {[%clk 0:00:02.7]} 51. Rc6+
{[%clk 0:00:07.1]} 51... Kd7 {[%clk 0:00:02.8]} 52. Rf6 {[%clk 0:00:06.8]} 52...
Ke7 {[%clk 0:00:02.9]} 53. Rc6 {[%clk 0:00:07.5]} 53... Rg1+ {[%clk 0:00:02.5]}
54. Kh2 {[%clk 0:00:07.7]} 54... Rf1 {[%clk 0:00:02.6]} 55. Kg2 {[%clk
0:00:08.6]} 55... Rf2+ {[%clk 0:00:02.9]} 56. Kh1 {[%clk 0:00:09.4]} 56... f6
{[%clk 0:00:03.4]} 57. Bf5 {[%clk 0:00:08.7]} 57... Rf1+ {[%clk 0:00:03]} 58.
Kg2 {[%clk 0:00:08.8]} 58... Rf2+ {[%clk 0:00:03.6]} 59. Kh1 {[%clk 0:00:09.7]}
59... Rf3 {[%clk 0:00:03.9]} 60. Kg2 {[%clk 0:00:08.8]} 60... Rg3+ {[%clk
0:00:04.2]} 61. Kh2 {[%clk 0:00:09.3]} 61... Bg1+ {[%clk 0:00:04.4]} 62. Kh1
{[%clk 0:00:09.7]} 62... Be3 {[%clk 0:00:05]} 63. Kh2 {[%clk 0:00:10.6]} 63...
Bf4 {[%clk 0:00:05.5]} 64. Re6+ {[%clk 0:00:10]} 64... Kf7 {[%clk 0:00:05.5]}
65. Rb6 {[%clk 0:00:06]} 65... Rxg4+ {[%clk 0:00:03.2]} 66. Kh1 {[%clk
0:00:05.9]} 66... Rg3 {[%clk 0:00:04.1]} 67. Rb7+ {[%clk 0:00:06]} 67... Ke8
{[%clk 0:00:04.6]} 68. Rb8+ {[%clk 0:00:05.8]} 68... Ke7 {[%clk 0:00:05.2]} 69.
Rb6 {[%clk 0:00:05.8]} 69... Rf3 {[%clk 0:00:03.9]} 70. Re6+ {[%clk 0:00:05.8]}
70... Kf7 {[%clk 0:00:04.2]} 71. Rd6 {[%clk 0:00:06.4]} 71... Rf2 {[%clk
0:00:03.6]} 72. Kg1 {[%clk 0:00:06.6]} 72... Rd2 {[%clk 0:00:03.2]} 73. Kf1
{[%clk 0:00:06.6]} 73... e4 {[%clk 0:00:03.2]} 74. Bxe4 {[%clk 0:00:06.5]} 74...
Bxd6 {[%clk 0:00:02.7]} 0-1